fUST/lending_fUST_20240429
["ID","MTS","AMOUNT","RATE_DAILY","PERIOD"]
[324823902,1714348242883,-265.60045142,0.00017298,2]
[324823903,1714348242892,-155.16040184,0.00017298,2]
[324823904,1714348242902,-184.25969139,0.00017298,2]
[324823905,1714348242912,-458.97476465,0.00017298,2]
[324823906,1714348242987,-105.90545053,0.00017298,2]
[324823907,1714348242996,-2533.21970642,0.00017298,2]
[324823908,1714348243005,-549.90481021,0.00017298,2]
[324823909,1714348243014,-155.02956039,0.00017298,2]
[324823910,1714348243024,-206.10837862,0.00017298,2]
[324823911,1714348243033,-190.94937985,0.00017298,2]
[324823912,1714348243044,-171.39787054,0.00017299,2]
[324823913,1714348243054,-1286.34199386,0.00017299,2]
[324823914,1714348243063,-11314.71799462,0.00017299,2]
[324823915,1714348243073,-9227.91184505,0.000173,3]
[324823916,1714348243083,-289381.06868096,0.000173,2]
[324823929,1714348245785,-2189.08636994,0.000173,2]
[324823933,1714348292739,291.61970245,9.999e-05,2]
[324823934,1714348328975,158.84979259,9.999e-05,2]
[324823936,1714348776879,-683.14084397,0.00012496,2]
[324823937,1714348776900,-362.23957674,0.00012496,2]
[324823938,1714348776921,-2806.69914,0.00012497,2]
[324823939,1714348776942,-4151.68247849,0.000125,2]
[324823940,1714348800610,-213.93273451,0.00012873,2]
[324823941,1714348800632,-1015.64247066,0.00012973,2]
[324823942,1714348800654,-200.56901729,0.00012973,2]
[324823943,1714348800683,-238.47884058,0.00012973,2]
[324823944,1714348800707,-250.0,0.00014448,2]
[324823945,1714348800729,-22981.37693696,0.00016525,2]
[324823946,1714348802934,-300.0,0.00016524,2]
[324823947,1714348802958,-1918.62306304,0.00016525,2]
[324823948,1714348807993,251.1,0.0001518,3]
[324823949,1714348808610,251.1,0.0001579,3]
[324823950,1714348809223,251.1,0.0001641,3]
[324823951,1714348847208,2165.017687,0.00016378,2]
[324823952,1714348848028,-251.1,0.0001702,3]
[324823953,1714348898383,-251.1,0.0001763,3]
[324823954,1714348898410,-251.1,0.0001824,3]
[324823955,1714348898432,-3133.89045865,0.000184,7]
[324823956,1714348898456,-251.1,0.0001886,3]
[324823957,1714348898481,-358.93,0.00018988,3]
[324823958,1714348898506,-179.47,0.00018988,3]
[324823959,1714348898527,-538.43,0.00018988,3]
[324823960,1714348898550,-195.78,0.00018989,3]
[324823961,1714348898576,-16216.78285959,0.00018997,3]
[324823962,1714348898606,-251.1,0.0001947,3]
[324823963,1714348898630,-2000.0,0.0002,3]
[324823964,1714348898652,-1007.61657364,0.0002,4]
[324823965,1714348898678,-251.1,0.0002008,3]
[324823966,1714348898699,-717.86,0.00020358,3]
[324823967,1714348898721,-358.94,0.00020358,3]
[324823968,1714348920910,2283.5265755,0.00016397,2]
[324823969,1714349021384,190.7640305,0.00016354,2]
[324823970,1714349024634,166.666666,0.00016369,2]
[324823971,1714349040253,-362.23957674,0.0001666,2]
[324823972,1714349040276,-153.0,0.00017,2]
[324823973,1714349040300,-1000.0,0.00017046,2]
[324823974,1714349040323,-1000.0,0.00017052,2]
[324823975,1714349040346,-1000.0,0.00017084,2]
[324823976,1714349040368,-1000.0,0.00017101,2]
[324823977,1714349040391,-1000.0,0.00017126,2]
[324823978,1714349040413,-1000.0,0.00017136,2]
[324823979,1714349040436,-1000.0,0.00017139,2]
[324823980,1714349040462,-1000.0,0.00017141,2]
[324823981,1714349040483,-1000.0,0.00017151,2]
[324823982,1714349040506,-1000.0,0.00017163,2]
[324823983,1714349040530,-1000.0,0.00017173,2]
[324823984,1714349040552,-1000.0,0.00017252,2]
[324823985,1714349040574,-1000.0,0.00017283,2]
[324823986,1714349040595,-1000.0,0.00017286,2]
[324823987,1714349040616,-1010.18629417,0.00017287,2]
[324823988,1714349040640,-154.92580275,0.00017298,2]
[324823989,1714349040663,-154.93797531,0.00017298,2]
[324823990,1714349040684,-1575.6250749,0.00017298,2]
[324823991,1714349040706,-193.67351203,0.00017299,2]
[324823992,1714349040729,-521.7140478,0.000173,2]
[324823993,1714349040752,-619.84595266,0.000173,2]
[324823994,1714349040774,-1412.34823473,0.000176,2]
[324823995,1714349040794,-620.02132858,0.0001762,2]
[324823996,1714349040815,-1674.76230276,0.00018,2]
[324823997,1714349041117,300.0,0.0001715,2]
[324823998,1714349056908,-3133.89045865,0.00018399,7]
[324823999,1714349101470,300.0,0.00014728,2]
[324824000,1714349103238,420.0,0.00016123,2]
[324824001,1714349103872,587.0,0.00017651,2]
[324824002,1714349128921,1194.38178871,0.00018399,7]
[324824003,1714349160536,300.0,0.00014728,2]
[324824004,1714349161166,420.0,0.00016201,2]
[324824005,1714349161847,587.0,0.00017821,2]
[324824006,1714349168485,-1939.50866994,0.00018399,7]
[324824007,1714349221379,223.0,0.00014728,2]
[324824008,1714349225103,-362.23957674,0.00018397,2]
[324824009,1714349225123,-1332.30051041,0.00018399,2]
[324824010,1714349240287,24900.0,0.00017703,2]
[324824011,1714349251117,-2654.42085953,0.00018398,7]
[324824012,1714349330567,250.0,0.00017643,2]
[324824013,1714349339477,1082.508843,0.00017643,2]
[324824014,1714349379826,-3133.89045865,0.00018396,7]
[324824046,1714349432111,-182.24064746,0.00018298,2]
[324824047,1714349432121,-2806.69914,0.00018397,2]
[324824048,1714349432130,-3387.09941543,0.00018498,2]
[324824049,1714349432139,-606.3055915,0.000185,2]
[324824050,1714349432148,-620.00106643,0.00018501,2]
[324824051,1714349432157,-182.24064745,0.00018563,2]
[324824052,1714349432166,-300.0,0.00018699,2]
[324824053,1714349432175,-153.0,0.000187,2]
[324824054,1714349432184,-153.0,0.000187,2]
[324824055,1714349432193,-153.0,0.000187,2]
[324824056,1714349432201,-340.6485953,0.000187,2]
[324824057,1714349432211,-153.0,0.000188,2]
[324824058,1714349432221,-153.0,0.000188,2]
[324824059,1714349432230,-153.0,0.000188,2]
[324824060,1714349432239,-153.0,0.000188,2]
[324824061,1714349432248,-153.0,0.000188,2]
[324824062,1714349432257,-153.0,0.000188,2]
[324824063,1714349432266,-1194.38178871,0.00018826,2]
[324824064,1714349432276,-1194.38178868,0.00018826,2]
[324824065,1714349432285,-1194.38178868,0.00018827,2]
[324824066,1714349432294,-1194.38178868,0.00018827,2]
[324824067,1714349432303,-182.24064745,0.00018827,2]
[324824068,1714349432311,-1194.38178868,0.00018827,2]
[324824069,1714349432320,-44444.0,0.00018827,2]
[324824070,1714349432329,-4882.50759543,0.000189,2]
[324824071,1714349432338,-1000.96662842,0.00018924,2]
[324824072,1714349432347,-700.42924407,0.00018924,2]
[324824073,1714349432356,-409.15735762,0.00018924,2]
[324824074,1714349432365,-358.9500096,0.00018924,2]
[324824075,1714349432375,-1582.46797534,0.00018924,7]
[324824076,1714349432384,-10937.09891345,0.00018925,2]
[324824078,1714349432395,-1016.88365063,0.00018925,2]
[324824475,1714349443128,-202.04472419,0.00018925,2]
[324824477,1714349443137,-8108.3914298,0.00018926,3]
[324824479,1714349443146,-118077.20858861,0.00018926,2]
[324824565,1714349443939,-70149.20371356,0.00018926,2]
[324824688,1714349545835,701.27515898,9.999e-05,2]
[324824689,1714349551463,166.666666,0.00017925,2]
[324824690,1714349560466,163.0,0.000226,29]
[324824691,1714349571704,154.82968734,0.00017925,2]
[324824692,1714349585221,154.84515485,0.00017925,2]
[324824693,1714349589873,312.83743319,0.00015,2]
[324824694,1714349599535,154.82968734,9.999e-05,2]
[324824695,1714349651219,154.82968734,0.0001,2]
[324824696,1714349667213,154.84515485,0.0001,2]
[324824697,1714349706807,150.0,0.0001523,3]
[324824698,1714349707420,150.0,0.0001584,3]
[324824699,1714349708014,150.0,0.0001645,3]
[324824700,1714349708618,150.0,0.0001705,3]
[324824702,1714349978008,300.0,0.000225,30]
[324824703,1714350408131,-271.57604148,0.00014727,2]
[324824704,1714350431108,-2318.03196861,0.00014727,2]
[324824705,1714350431128,-1201.16467041,0.000149,2]
[324824706,1714350431148,-312.83743319,0.000162,2]
[324824707,1714350431168,-479.23693535,0.00016875,2]
[324824708,1714350441103,-4454.51598083,0.00016654,2]
[324824753,1714350632363,-150.0,0.0001523,3]
[324824755,1714350632373,-150.0,0.0001584,3]
[324824757,1714350632383,-150.0,0.0001645,3]
[324824759,1714350632392,-300.0,0.00016653,2]
[324824761,1714350632401,-300.0,0.00016653,2]
[324824763,1714350632410,-6917.13748686,0.00016654,2]
[324824819,1714350638189,-9000.0,0.00016654,2]
[324824884,1714350640547,-4528.34653231,0.00016654,2]
[324824886,1714350640557,-135.35285405,0.00016875,2]
[324824888,1714350640567,-541.254421,0.00016914,2]
[324824890,1714350640576,-150.0,0.0001705,3]
[324824892,1714350640587,-166.666666,0.00017305,2]
[324824894,1714350640596,-689.4532291,0.00017438,2]
[324824896,1714350640605,-150.0,0.0001766,3]
[324824898,1714350640614,-420.0,0.00018195,2]
[324824900,1714350640624,-150.0,0.0001827,3]
[324824902,1714350640633,-153.0,0.00018278,2]
[324824904,1714350640642,-420.0,0.00018319,2]
[324824906,1714350640651,-628.20912122,0.00018455,2]
[324824908,1714350640660,-153.0,0.00018615,2]
[324824910,1714350640669,-157.53850697,0.00018736,2]
[324824912,1714350640679,-154.86062544,0.00018737,2]
[324824914,1714350640688,-241.1503899,0.00018778,2]
[324824916,1714350640697,-206.3192644,0.00018778,2]
[324824918,1714350640706,-153.0,0.00018778,2]
[324824920,1714350640717,-150.0,0.0001888,3]
[324824922,1714350640726,-1621.41921468,0.00018924,2]
[324824924,1714350640735,-155.09147188,0.00018924,2]
[324824926,1714350640744,-257.51040845,0.00018924,2]
[324824928,1714350640753,-2791.14248371,0.00018924,2]
[324824930,1714350640762,-240.61208165,0.00018924,2]
[324824932,1714350640771,-204.35865127,0.00018924,2]
[324824934,1714350640780,-258.39140625,0.00018924,2]
[324824936,1714350640789,-155.23403882,0.00018924,2]
[324824938,1714350640798,-194.47135596,0.00018924,2]
[324824940,1714350640807,-155.67711311,0.00018924,2]
[324824942,1714350640816,-309.62655691,0.00018924,2]
[324824944,1714350640826,-154.9569278,0.00018924,2]
[324824946,1714350640835,-213.85926393,0.00018924,2]
[324824948,1714350640844,-155.09626828,0.00018924,2]
[324824951,1714350640854,-158.6245065,0.00018924,2]
[324824953,1714350640864,-232.8273875,0.00018924,2]
[324824955,1714350640876,-1202.39645166,0.00018924,2]
[324824957,1714350640885,-300.23910287,0.00018924,2]
[324824959,1714350640895,-156.79692768,0.00018924,2]
[324824961,1714350640904,-411.19573791,0.00018924,2]
[324824963,1714350640914,-155.00612381,0.00018924,2]
[324824965,1714350640923,-267.64801224,0.00018924,2]
[324824967,1714350640932,-303.08744833,0.00018924,2]
[324824969,1714350640942,-155.08674002,0.00018924,2]
[324824971,1714350640955,-216.31330408,0.00018924,2]
[324824973,1714350640967,-235.27670507,0.00018924,2]
[324824975,1714350640976,-472.01022916,0.00018924,2]
[324824977,1714350640985,-154.95663486,0.00018924,2]
[324824979,1714350640995,-356.40387446,0.00018924,2]
[324824981,1714350641005,-154.84515485,0.00018924,2]
[324824983,1714350641014,-308.9430456,0.00018924,2]
[324824986,1714350641023,-701.27515898,0.00018924,2]
[324824988,1714350641032,-700.42924407,0.00018924,2]
[324824990,1714350641041,-603.57234398,0.00018925,2]
[324824992,1714350641050,-189.33539458,0.00018996,2]
[324824994,1714350641060,-816.33096343,0.00018997,2]
[324824996,1714350641069,-154.79876161,0.00019,2]
[324824998,1714350641078,-154.82968734,0.00019,2]
[324825000,1714350641087,-174.18792079,0.00019,2]
[324825002,1714350641097,-153.0,0.00019,2]
[324825004,1714350641106,-153.0,0.00019,2]
[324825006,1714350641116,-5737.50307956,0.00019025,2]
[324825008,1714350641127,-2194.66781991,0.00019025,2]
[324825010,1714350641136,-158.78165805,0.00019025,2]
[324825012,1714350641145,-2100.22968197,0.00019026,2]
[324825014,1714350641154,-4054.1957149,0.00019077,3]
[324825016,1714350641163,-8039.87303008,0.00019077,2]
[324825018,1714350641172,-89153.8837115,0.00019077,2]
[324825272,1714351539765,2589.60801009,9.999e-05,2]
[324825273,1714351548164,-150.0,0.0001532,3]
[324825274,1714351548183,-402.1018271,0.00016438,2]
[324825275,1714351548205,-300.0,0.0001693,2]
[324825276,1714351548224,-300.0,0.0001693,2]
[324825277,1714351548245,-24900.0,0.00016931,2]
[324825278,1714351548264,-654.76447344,0.00017089,2]
[324825279,1714351548283,-270.62721,0.00017189,2]
[324825280,1714351548302,-213.93273451,0.00017921,2]
[324825281,1714351548320,-166.666666,0.00017922,2]
[324825282,1714351548338,-189.33539458,0.0001802,2]
[324825283,1714351548357,-155.0584416,0.00018121,2]
[324825284,1714351548376,-654.76447343,0.00018491,2]
[324825285,1714351548396,-420.0,0.00018493,2]
[324825286,1714351548416,-420.0,0.00018623,2]
[324825287,1714351548434,-155.91423434,0.00018886,2]
[324825288,1714351548454,-4255.15842367,0.000189,2]
[324825289,1714351548473,-154.79876161,0.00018999,2]
[324825290,1714351548491,-154.79876161,0.00019,2]
[324825291,1714351548509,-9545.01442365,0.00019,2]
[324825292,1714351548527,-154.79876161,0.00019,2]
[324825293,1714351548545,-7932.17089947,0.00019,2]
[324825294,1714351548564,-239.15022535,0.00019,2]
[324825295,1714351548582,-1169.53109154,0.00019074,2]
[324825296,1714351548600,-1765.35470477,0.00019075,7]
[324825297,1714351548618,-154.79876161,0.00019075,2]
[324825298,1714351548636,-154.81422293,0.00019075,2]
[324825299,1714351548656,-154.81422293,0.00019075,2]
[324825300,1714351548675,-154.81422293,0.00019075,2]
[324825301,1714351548694,-154.81422293,0.00019075,2]
[324825302,1714351548714,-362.23957674,0.00019075,2]
[324825303,1714351548733,-1576.18094803,0.00019076,2]
[324825304,1714351548753,-2027.09785745,0.00019077,3]
[324825305,1714351548773,-36959.96240029,0.00019077,2]
[324825306,1714351645182,-189.33539458,0.00018899,2]
[324825307,1714351645203,-2836.77228244,0.000189,2]
[324825308,1714351645227,-238.58299486,0.00019,2]
[324825309,1714351645247,-154.79876161,0.00019,2]
[324825310,1714351645266,-239.15022535,0.00019,2]
[324825311,1714351645287,-300.0,0.00019055,2]
[324825312,1714351645306,-300.0,0.00019055,2]
[324825313,1714351645324,-6093.07999059,0.00019056,2]
[324825314,1714351645342,-155.11062977,0.00019075,2]
[324825315,1714351645361,-165.803035,0.00019075,2]
[324825316,1714351645379,-424.44134518,0.00019076,2]
[324825317,1714351645398,-1085.26658929,0.00019076,2]
[324825318,1714351645416,-8512.77805133,0.00019077,2]
[324825319,1714351650105,-166.666666,0.00018226,2]
[324825320,1714351650128,-3943.89675647,0.00019077,2]
[324825321,1714351653112,-1013.54892872,0.00019077,3]
[324825322,1714351653135,-116388.79783128,0.00019077,2]
[324825752,1714351838429,-300.0,0.00014728,2]
[324825753,1714351838440,-420.0,0.00016201,2]
[324825754,1714351838451,-574.77256368,0.00017821,2]
[324825755,1714351838462,-12.22743632,0.00017821,2]
[324825756,1714351838471,-189.33539458,0.00018,2]
[324825757,1714351838481,-270.62721,0.00018082,2]
[324825758,1714351838490,-154.79876161,0.00019,2]
[324825759,1714351838499,-239.15022535,0.00019,2]
[324825760,1714351838509,-1596.84725221,0.00019075,2]
[324825761,1714351838519,-300.0,0.00019076,2]
[324825762,1714351838528,-3237.01371993,0.00019077,2]
[324825763,1714351838804,-37464.56069269,0.00019077,2]
[324825764,1714351838819,-258.89243828,0.00019077,2]
[324825780,1714351840644,-6607.30002287,0.00019077,2]
[324825782,1714351840656,-107592.97657045,0.00019077,2]
[324825784,1714351840665,-2918.0,0.000191,2]
[324825785,1714351840675,-183.95781975,0.000191,2]
[324825786,1714351840684,-153.0,0.000191,2]
[324825787,1714351840693,-427.03068421,0.00019175,2]
[324825788,1714351840702,-2901.0254796,0.00019176,2]
[324825789,1714351840711,-506.77446436,0.00019178,3]
[324825790,1714351840720,-249.85724737,0.00019178,2]
[324825791,1714351840730,-435.69998803,0.00019178,2]
[324825792,1714351840740,-500.0,0.00019178,2]
[324825793,1714351840749,-500.0,0.00019178,2]
[324825794,1714351840758,-500.0,0.00019178,2]
[324825795,1714351840768,-172.24661023,0.00019178,2]
[324825796,1714351840777,-192.91544691,0.00019178,2]
[324825797,1714351840786,-168.86244909,0.00019178,2]
[324825798,1714351840798,-331.13755091,0.00019178,2]
[324825799,1714351840807,-500.0,0.00019178,2]
[324825800,1714351840816,-84.5275787,0.00019178,2]
[324825860,1714351846411,-415.4724213,0.00019178,2]
[324825861,1714351846421,-434.01109194,0.00019178,2]
[324825862,1714351846431,-308.68064727,0.00019178,2]
[324825863,1714351846440,-409.48089247,0.00019178,2]
[324825864,1714351846450,-500.0,0.00019178,2]
[324825865,1714351846460,-500.0,0.00019178,2]
[324825866,1714351846469,-500.0,0.00019178,2]
[324825867,1714351846478,-606.5,0.00019178,2]
[324825868,1714351846488,-500.0,0.00019178,2]
[324825869,1714351846497,-500.0,0.00019178,2]
[324825870,1714351846507,-433.41552622,0.00019178,2]
[324825871,1714351846517,-298.55817098,0.00019178,2]
[324825872,1714351846527,-421.2888997,0.00019178,2]
[324825873,1714351846537,-500.0,0.00019178,2]
[324825874,1714351846547,-500.0,0.00019178,2]
[324825875,1714351846557,-500.0,0.00019178,2]
[324825876,1714351846566,-500.0,0.00019178,2]
[324825877,1714351846576,-500.0,0.00019178,2]
[324825878,1714351846585,-500.0,0.00019178,2]
[324825879,1714351846595,-300.0,0.00019178,2]
[324825880,1714351846604,-500.0,0.00019178,2]
[324825881,1714351846613,-500.0,0.00019178,2]
[324825882,1714351846623,-500.0,0.00019178,2]
[324825883,1714351846632,-500.0,0.00019178,2]
[324825884,1714351846641,-250.2819186,0.00019178,2]
[324825885,1714351846650,-467.58794543,0.00019178,2]
[324825886,1714351846659,-500.0,0.00019178,2]
[324825887,1714351846669,-500.0,0.00019178,2]
[324825888,1714351846679,-500.0,0.00019178,2]
[324825889,1714351846688,-500.0,0.00019178,2]
[324825890,1714351846697,-244.63622785,0.00019178,2]
[324825891,1714351846706,-498.5,0.00019178,2]
[324825892,1714351846716,-500.0,0.00019178,2]
[324825893,1714351846725,-500.0,0.00019178,2]
[324825894,1714351846735,-500.0,0.00019178,2]
[324825895,1714351846744,-600.67778856,0.00019178,2]
[324825896,1714351846753,-500.0,0.00019178,2]
[324825897,1714351846763,-500.0,0.00019178,2]
[324825898,1714351846772,-500.0,0.00019178,2]
[324825899,1714351846782,-500.0,0.00019178,2]
[324825900,1714351846791,-500.0,0.00019178,2]
[324825901,1714351846801,-500.0,0.00019178,2]
[324825902,1714351846811,-500.0,0.00019178,2]
[324825903,1714351846820,-500.0,0.00019178,2]
[324825904,1714351846828,-6.02776968,0.00019178,2]
[324825905,1714351846840,-493.97223032,0.00019178,2]
[324825906,1714351846849,-500.0,0.00019178,2]
[324825907,1714351846869,-500.0,0.00019178,2]
[324825908,1714351846880,-500.0,0.00019178,2]
[324825909,1714351846889,-500.0,0.00019178,2]
[324825910,1714351846899,-10.86486718,0.00019178,2]
[324825911,1714351895908,564.88021518,9.999e-05,2]
[324825912,1714352090126,3000.0,0.000184,7]
[324825915,1714352731349,3133.89045865,0.00018,7]
[324825916,1714352732775,2897.93,0.0001011,2]
[324825917,1714352745108,-5405.55800487,0.00014528,2]
[324825918,1714352745128,-919.09134024,0.00014628,2]
[324825919,1714352745147,-213.93273451,0.00016023,2]
[324825920,1714352745166,-166.666666,0.00016112,2]
[324825921,1714352745187,-300.0,0.00017678,2]
[324825922,1714352745209,-300.0,0.00017678,2]
[324825923,1714352745233,-24900.0,0.00017679,2]
[324825924,1714352745253,-5000.0,0.00018,2]
[324825925,1714352745272,-620.41045606,0.00018408,2]
[324825926,1714352745291,-1891.18152163,0.000189,2]
[324825927,1714352745309,-339.0449282,0.00018904,2]
[324825928,1714352745328,-154.79876161,0.00019,2]
[324825929,1714352745346,-306.0,0.00019,2]
[324825930,1714352745364,-239.15022535,0.00019,2]
[324825931,1714352745382,-238.47884058,0.00019077,2]
[324825932,1714352745401,-1018.44698092,0.00019175,2]
[324825933,1714352745419,-189.57971705,0.00019176,2]
[324825934,1714352745441,-4448.72587924,0.00019176,2]
[324825935,1714352756089,-1749.21149268,0.00019175,7]
[324825936,1714352756108,-17574.69530906,0.00019176,2]
[324825937,1714352756130,-253.38723218,0.00019177,3]
[324825938,1714352756150,-355.04038315,0.00019177,2]
[324825939,1714352756170,-25989.80512467,0.00019177,2]
[324825940,1714352845112,-372.88040474,0.00018,2]
[324825941,1714352845132,-945.59076081,0.000189,2]
[324825942,1714352845153,-235.7098063,0.00019,2]
[324825943,1714352845172,-238.58299486,0.00019,2]
[324825944,1714352845192,-239.15022535,0.00019,2]
[324825945,1714352845344,-318.01183768,0.00019078,2]
[324825946,1714352845364,-3606.46838621,0.00019156,2]
[324826002,1714353032728,-300.0,0.00018175,2]
[324826004,1714353032738,-300.0,0.00018175,2]
[324826005,1714353032748,-24900.0,0.00018176,2]
[324826006,1714353032757,-154.79876161,0.00019,2]
[324826008,1714353032767,-239.15022535,0.00019155,2]
[324826010,1714353032776,-2486.61160438,0.00019156,2]
[324826012,1714353032786,-189.33539458,0.00019175,2]
[324826014,1714353032795,-186.25450795,0.00019175,2]
[324826016,1714353032804,-633.46808045,0.00019177,3]
[324826018,1714353032813,-3519.491645,0.00019177,2]
[324826120,1714353038889,-5183.45178403,0.00019177,2]
[324826122,1714353038905,-2228.6810918,0.00019177,2]
[324826258,1714353041061,-827.21261507,0.00019177,2]
[324826301,1714353043917,-2935.03312704,0.00019177,2]
[324826302,1714353043973,-83688.82875604,0.00019177,2]
[324826308,1714353046747,-2260.1621221,0.00019177,2]
[324826309,1714353084744,154.79876161,9.999e-05,2]
[324826310,1714353139120,1491.40548349,9.999e-05,2]
[324826311,1714353206368,1312.75517414,0.0001,2]
[324826312,1714353218872,222.44165252,9.999e-05,2]
[324826313,1714353218908,246.34848362,9.999e-05,2]
[324826314,1714353236546,564.88021518,9.999e-05,2]
[324826315,1714353248390,16100.53592353,9.999e-05,2]
[324826316,1714353252057,475.11677013,9.999e-05,2]
[324826317,1714353254230,284.9878188,9.999e-05,2]
[324826318,1714353264392,1692.07421503,9.999e-05,2]
[324826319,1714353274799,683.14084397,9.999e-05,2]
[324826320,1714353274860,186.80420864,9.999e-05,2]
[324826321,1714353279416,335.0,0.000184,7]
[324826322,1714353455863,362.23957674,9.999e-05,2]
[324826325,1714353808546,409.15735762,9.999e-05,2]
[324826326,1714353839236,1491.40548349,9.999e-05,2]
[324826327,1714353902852,689.04115387,9.999e-05,2]
[324826328,1714353949174,-1879.32925164,0.00014686,2]
[324826329,1714353949193,-362.23957674,0.00014687,2]
[324826330,1714353949212,-1891.26101564,0.00014688,2]
[324826331,1714353949232,-166.666666,0.00014698,2]
[324826332,1714353949251,-1677.25579651,0.00015478,2]
[324826333,1714353949269,-939.17958365,0.00015479,2]
[324826334,1714353949288,-150.0,0.0001548,3]
[324826335,1714353949311,-150.0,0.0001607,3]
[324826336,1714353949330,-300.0,0.00016549,2]
[324826337,1714353949350,-300.0,0.00016549,2]
[324826338,1714353949504,-1217.50298328,0.0001655,2]
[324826339,1714353949524,-796.3912983,0.0001655,2]
[324826340,1714353949544,-1492.93000124,0.00016586,2]
[324826341,1714353992112,-272.67396181,0.00015,2]
[324826342,1714354040099,-300.0,0.00016438,2]
[324826343,1714354040120,-300.0,0.00016438,2]
[324826344,1714354040139,-312.83743319,0.00016438,2]
[324826345,1714354040159,-3398.43357437,0.00016439,2]
[324826346,1714354040204,-4454.51598083,0.00016439,2]
[324826347,1714354041108,-17047.0504448,0.00016439,2]
[324826348,1714354041129,-150.0,0.0001665,3]
[324826349,1714354041148,-305.51592634,0.00017258,2]
[324826350,1714354041169,-197.0,0.00017965,2]
[324826351,1714354041193,-1676.44,0.00017999,2]
[324826352,1714354041213,-500.0,0.00017999,2]
[324826353,1714354041232,-1053.01,0.00017999,2]
[324826354,1714354041253,-16303.99,0.00017999,2]
[324826355,1714354041272,-500.0,0.00017999,2]
[324826356,1714354041292,-2074.26,0.00017999,2]
[324826357,1714354041314,-500.0,0.00017999,2]
[324826358,1714354041335,-1158.1,0.00017999,2]
[324826359,1714354041355,-1029.35502817,0.00018,2]
[324826360,1714354041375,-3387.09941543,0.00018,2]
[324826361,1714354041397,-420.0,0.00018082,2]
[324826362,1714354041418,-1676.44,0.00018273,3]
[324826363,1714354041439,-500.0,0.00018273,3]
[324826364,1714354041460,-1053.01,0.00018273,3]
[324826365,1714354041480,-16303.99,0.00018273,3]
[324826366,1714354041500,-512.97060279,0.00018273,3]
[324826367,1714354041520,-2074.26,0.00018273,3]
[324826368,1714354041540,-500.0,0.00018273,3]
[324826369,1714354041563,-1158.1,0.00018273,3]
[324826370,1714354041584,-220730.21326231,0.00018546,2]
[324826371,1714354065488,1855.58356014,0.00018,7]
[324826378,1714354232976,-166.39460393,0.00016338,2]
[324826380,1714354232986,-166.666666,0.00017028,2]
[324826382,1714354232996,-974.00238664,0.00017899,2]
[324826384,1714354233006,-300.0,0.00017998,2]
[324826386,1714354233015,-500.0,0.00017999,2]
[324826388,1714354233025,-7663.9,0.00017999,2]
[324826390,1714354233035,-500.0,0.00017999,2]
[324826393,1714354233045,-289.64407308,0.00017999,2]
[324826395,1714354233054,-1369.14,0.00017999,2]
[324826396,1714354233063,-638.11,0.00017999,2]
[324826399,1714354233073,-877.27,0.00017999,2]
[324826401,1714354233082,-1990.47,0.00017999,2]
[324826402,1714354233095,-500.0,0.00017999,2]
[324826404,1714354233105,-500.0,0.00017999,2]
[324826406,1714354233115,-500.0,0.00017999,2]
[324826408,1714354233124,-500.0,0.00017999,2]
[324826410,1714354233134,-500.0,0.00017999,2]
[324826412,1714354233143,-500.0,0.00017999,2]
[324826414,1714354233153,-3936.53,0.00017999,2]
[324826416,1714354233162,-3467.76,0.00017999,2]
[324826419,1714354233172,-796.14,0.00017999,2]
[324826421,1714354233181,-1012.41,0.00017999,2]
[324826422,1714354233190,-6692.36,0.00017999,2]
[324826425,1714354233200,-500.0,0.00017999,2]
[324826427,1714354233209,-3387.09941543,0.00018035,2]
[324826429,1714354233218,-974.0023866,0.00018036,2]
[324826431,1714354233228,-696.84238603,0.00018073,2]
[324826432,1714354233238,-974.0023866,0.00018173,2]